bitfinex-derivatives/quotes_SOLF0:USTF0_20240926
["timestamp","ask_amount","ask_price","bid_price","bid_amount"]
[1727377016889,3.1913,156.64,156.62,9.82]
[1727377017394,3.1911,156.65,156.62,9.82]
[1727377018088,1.3466,156.68,156.64,9.82]
[1727377018291,11.1666,156.68,156.63,9.82]
[1727377018482,9.82,156.67,156.62,9.82]
[1727377018685,3.1912,156.64,156.62,9.82]
[1727377018989,9.82,156.67,156.62,9.82]
[1727377019286,9.82,156.65,156.61,9.82]
[1727377019593,3.1912,156.64,156.61,9.82]
[1727377019792,3.1912,156.64,156.62,9.82]
[1727377020094,1.3466,156.68,156.63,9.82]
[1727377020290,9.82,156.67,156.59,1.2874]
[1727377020485,9.82,156.67,156.59,4.41895747]
[1727377020685,3.191,156.65,156.62,9.82]
[1727377020899,9.82,156.65,156.56,1.2653]
[1727377021094,9.82,156.65,156.6,9.82]
[1727377021390,3.1913,156.64,156.6,9.82]
[1727377022291,3.1914,156.63,156.6,13.0118]
[1727377022492,1.3466,156.68,156.62,9.82]
[1727377022695,11.1666,156.68,156.64,9.82]
[1727377024002,3.1909,156.66,156.64,9.82]
[1727377025393,1.3466,156.68,156.65,9.82]
[1727377025796,3.1908,156.67,156.65,9.82]
[1727377026797,3.1908,156.66,156.65,9.82]
[1727377026992,3.1908,156.66,156.64,9.82]
[1727377028395,3.1908,156.66,156.65,9.82]
[1727377032608,3.191,156.65,156.64,9.82]
[1727377037209,1.3466,156.68,156.64,13.0112]
[1727377037411,1.3466,156.68,156.66,9.82]
[1727377038803,3.1906,156.67,156.66,9.82]
[1727377040910,1.3466,156.68,156.66,9.82]
[1727377041216,1.3466,156.68,156.67,9.82]
[1727377041524,4.537,156.68,156.67,9.82]
[1727377045613,3.1906,156.67,156.66,9.82]
[1727377045809,1.3466,156.68,156.64,9.82]
[1727377046209,3.1909,156.66,156.64,9.82]
[1727377047027,3.1907,156.67,156.65,9.82]
[1727377047619,4.5371,156.68,156.66,9.82]
[1727377048021,1.3466,156.68,156.66,9.82]
[1727377048622,4.5371,156.68,156.66,9.82]
[1727377050224,3.1905,156.68,156.66,9.82]
[1727377052619,3.1905,156.68,156.66,13.0108]
[1727377056334,3.1901,156.7,156.67,13.0106]
[1727377056528,1.2967,156.72,156.69,9.82]
[1727377056836,3.1898,156.71,156.7,9.82]
[1727377057330,1.3218,156.76,156.7,13.01]
[1727377057532,9.82,156.75,156.7,9.82]
[1727377057728,9.82,156.74,156.7,9.82]
[1727377058130,9.82,156.71,156.62,1.2683]
[1727377058326,9.82,156.69,156.65,9.82]
[1727377058526,3.1905,156.68,156.65,13.0109]
[1727377059131,11.17,156.7,156.65,9.82]
[1727377059438,3.1903,156.69,156.66,3.1907]
[1727377059733,9.82,156.68,156.62,1.2683]
[1727377060029,13.0105,156.68,156.64,9.82]
[1727377060231,9.82,156.68,156.64,9.82]
[1727377060624,9.82,156.68,156.65,3.1909]
[1727377061230,13.0105,156.68,156.65,3.1909]
[1727377061528,3.1905,156.68,156.66,3.1908]
[1727377062228,3.1902,156.69,156.66,13.0108]
[1727377062434,3.1902,156.69,156.66,9.82]
[1727377062832,4.54,156.7,156.67,3.1906]
[1727377063539,3.1902,156.69,156.67,3.1906]
[1727377063740,3.1902,156.69,156.66,13.0107]
[1727377065539,9.82,156.69,156.65,13.0109]
[1727377065740,1.35,156.7,156.67,9.82]
[1727377065941,1.35,156.7,156.68,9.82]
[1727377066440,9.82,156.75,156.69,9.82]
[1727377066641,9.82,156.75,156.71,9.82]
[1727377067144,3.1895,156.73,156.71,9.82]
[1727377069142,3.1892,156.74,156.71,13.0097]
[1727377070745,3.1894,156.73,156.71,9.82]
[1727377070936,9.82,156.75,156.71,9.82]
[1727377071141,9.82,156.75,156.7,13.0099]
[1727377072239,9.82,156.72,156.68,9.82]
[1727377072441,9.82,156.71,156.66,9.82]
[1727377072638,3.1903,156.69,156.66,13.0107]
[1727377073346,3.1903,156.69,156.67,3.1906]
[1727377074746,3.1903,156.69,156.67,13.0106]
[1727377075342,3.19,156.7,156.67,13.0106]
[1727377075546,3.19,156.7,156.68,3.1904]
[1727377076743,3.19,156.7,156.67,13.0105]
[1727377078347,9.82,156.69,156.62,1.2683]
[1727377078554,9.82,156.69,156.65,9.82]
[1727377078848,2.6,156.76,156.68,9.82]
[1727377079041,2.6,156.76,156.71,9.82]
[1727377079444,9.82,156.75,156.71,9.82]
[1727377079949,3.1892,156.74,156.71,9.82]
[1727377081253,9.82,156.74,156.69,13.01]
[1727377081745,2.6,156.76,156.69,9.82]
[1727377081947,9.82,156.74,156.69,9.82]
[1727377082246,3.1895,156.73,156.7,3.1899]
[1727377082753,3.1895,156.73,156.7,13.0099]
[1727377083361,3.1895,156.73,156.71,9.82]
[1727377083550,3.1892,156.74,156.71,13.0097]
[1727377083754,12.42,156.76,156.71,9.82]
[1727377085151,2.6,156.76,156.71,13.0098]
[1727377085656,2.6,156.76,156.65,6.37625985]
[1727377085657,5.7889,156.76,156.74,9.82]
[1727377086053,4.467,156.76,156.74,9.82]
[1727377086354,1.2782,156.76,156.74,9.82]
[1727377087955,11.0982,156.76,156.71,9.82]
[1727377088258,3.189,156.75,156.72,9.82]
[1727377089853,3.189,156.75,156.72,13.0096]
[1727377092662,9.82,156.74,156.69,9.82]
[1727377093162,3.1893,156.74,156.71,3.1897]
[1727377093661,3.1893,156.74,156.7,13.0099]
[1727377094153,3.1894,156.73,156.7,13.0099]
[1727377095460,9.82,156.73,156.68,9.82]
[1727377095961,9.82,156.74,156.69,9.82]
[1727377096254,11.0814,156.75,156.7,9.82]
[1727377096860,1.2782,156.76,156.72,9.82]
[1727377097062,1.2782,156.76,156.73,9.82]
[1727377097357,4.4671,156.76,156.73,9.82]
[1727377099464,3.189,156.75,156.73,9.82]
[1727377100058,3.189,156.75,156.72,13.0094]
[1727377101357,11.0982,156.76,156.71,9.82]
[1727377101558,9.82,156.75,156.71,9.82]
[1727377102158,3.1894,156.73,156.71,9.82]
[1727377105468,1.2782,156.76,156.72,9.82]
[1727377106366,3.1891,156.75,156.72,13.0094]
[1727377107364,3.1891,156.75,156.73,9.82]
[1727377107571,4.467,156.76,156.73,13.0093]
[1727377108764,3.189,156.75,156.73,9.82]
[1727377109169,3.189,156.75,156.72,13.0095]
[1727377109971,11.0814,156.79,156.74,9.82]
[1727377111072,3.1887,156.77,156.74,13.009]
[1727377111279,1.2614,156.79,156.75,9.82]
[1727377111674,3.1885,156.77,156.75,9.82]
[1727377112379,3.1884,156.78,156.75,13.0089]
[1727377113286,1.2951,156.81,156.76,13.0086]
[1727377113481,1.2527,156.84,156.8,9.82]
[1727377113782,0.97194431,156.83,156.8,9.82]
[1727377114175,3.1876,156.82,156.8,9.82]
[1727377114380,3.1876,156.82,156.78,18.4982]
[1727377114873,1.2527,156.84,156.78,15.31]
[1727377115275,1.3444,156.85,156.78,15.31]
[1727377115485,3.1873,156.84,156.79,3.1881]
[1727377116183,3.1873,156.83,156.79,3.1881]
[1727377116983,1.3444,156.85,156.81,3.1877]
[1727377117286,1.3444,156.85,156.81,15.31]
[1727377117487,4.5313,156.85,156.81,15.31]
[1727377118994,4.5313,156.85,156.81,18.4977]
[1727377119294,1.3444,156.85,156.79,3.188]
[1727377120493,3.1875,156.83,156.79,3.188]
[1727377120694,1.3444,156.85,156.78,4.5481]
[1727377121294,3.1873,156.83,156.78,4.5481]
[1727377121497,1.3444,156.85,156.78,4.5481]
[1727377121887,3.1877,156.81,156.78,1.3598]
[1727377122088,15.31,156.84,156.75,15.31]
[1727377122492,3.1876,156.82,156.77,3.1884]
[1727377123800,3.1873,156.83,156.78,3.1882]
[1727377124394,3.1875,156.82,156.75,15.31]
[1727377124899,3.1875,156.82,156.78,3.1883]
[1727377125099,1.3444,156.85,156.78,3.1883]
[1727377125297,1.3444,156.85,156.75,15.31]
[1727377125493,15.31,156.84,156.75,15.31]
[1727377126296,3.1883,156.79,156.73,16.6849]
[1727377126498,15.31,156.82,156.73,16.6849]
[1727377127002,15.31,156.82,156.75,3.1888]
[1727377127502,3.1881,156.79,156.75,3.1888]
[1727377128903,3.1881,156.8,156.76,3.1887]
[1727377129406,15.31,156.82,156.76,3.1887]
[1727377130006,15.31,156.82,156.7,1.3812]
[1727377130202,15.31,156.82,156.71,15.31]
[1727377130403,3.1885,156.78,156.71,15.31]
[1727377130812,18.55017598,156.8,156.71,15.31]
[1727377131007,15.31,156.8,156.71,15.31]
[1727377131296,3.1885,156.77,156.73,3.1892]
[1727377131497,15.31,156.82,156.73,15.31]
[1727377132711,3.1881,156.79,156.75,3.1888]
[1727377134207,3.1884,156.78,156.74,3.1891]
[1727377135300,3.1886,156.77,156.73,3.1893]
[1727377135604,15.31,156.8,156.71,15.31]
[1727377135908,3.1886,156.77,156.72,3.1894]
[1727377136908,3.1888,156.76,156.72,3.1894]
[1727377137104,1.3295,156.79,156.72,3.1894]
[1727377137410,3.1889,156.76,156.71,15.31]
[1727377137801,3.1889,156.76,156.72,3.1895]
[1727377138410,3.1892,156.74,156.7,1.3597]
[1727377139007,3.1894,156.73,156.7,1.3597]
[1727377139200,3.1894,156.73,156.69,15.31]
[1727377139604,3.1894,156.73,156.7,3.1899]
[1727377140003,15.31,156.76,156.69,3.1901]
[1727377140202,15.31,156.76,156.67,15.31]
[1727377140607,20.5095,156.79,156.69,15.31]
[1727377140809,35.8195,156.79,156.69,15.31]
[1727377141210,3.1893,156.74,156.69,15.31]
[1727377142414,3.1893,156.74,156.71,3.1897]
[1727377143315,3.1893,156.74,156.7,3.1899]
[1727377143613,16.6395,156.79,156.71,3.1897]
[1727377144111,15.31,156.78,156.67,15.31]
[1727377144315,15.31,156.78,156.7,3.1899]
[1727377144617,1.3309,156.77,156.67,15.31]
[1727377145116,1.3309,156.77,156.69,3.1901]
[1727377145513,3.1896,156.72,156.69,3.1901]
[1727377145910,3.1898,156.71,156.68,3.1903]
[1727377146105,3.1898,156.71,156.66,1.3405]
[1727377146610,15.31,156.73,156.65,59.14772061]
[1727377146814,15.31,156.71,156.65,59.14772061]
[1727377148115,16.6225,156.71,156.65,59.14772061]
[1727377148317,16.6225,156.71,156.65,62.33872061]
[1727377148817,3.1904,156.68,156.65,62.33872061]
[1727377149220,1.3125,156.71,156.66,3.1907]
[1727377149417,3.1902,156.69,156.66,3.1907]
[1727377149615,1.3125,156.71,156.64,15.31]
[1727377149816,16.6225,156.71,156.64,18.5011]
[1727377150010,3.1902,156.69,156.62,16.6845]
[1727377150618,3.1902,156.69,156.65,3.1908]
[1727377151224,16.6225,156.71,156.64,3.1911]
[1727377151815,3.1906,156.67,156.64,3.1911]
[1727377157522,3.1906,156.67,156.65,3.191]
[1727377158522,17.8934,156.71,156.66,3.1907]
[1727377159225,17.8934,156.71,156.67,3.1905]
[1727377160423,3.1901,156.7,156.66,3.1907]
[1727377161225,3.1901,156.7,156.67,3.1905]
[1727377163522,17.8934,156.71,156.64,15.31]
[1727377163722,1.2599,156.72,156.68,15.31]
[1727377164224,3.1893,156.74,156.68,15.31]
[1727377164429,3.1893,156.74,156.7,9.81]
[1727377164628,3.1892,156.74,156.71,3.1897]
[1727377164823,3.1892,156.74,156.7,9.81]
[1727377166421,3.1892,156.74,156.7,3.1898]
[1727377166828,3.1894,156.73,156.7,3.1898]
[1727377167234,16.6904,156.76,156.71,3.1897]
[1727377167420,3.1893,156.74,156.71,3.1897]
[1727377168032,3.1893,156.74,156.7,3.1898]
[1727377168725,3.1894,156.73,156.7,3.1898]
[1727377171432,3.1892,156.74,156.71,3.1898]
[1727377171731,1.3604,156.76,156.71,3.1898]
[1727377171931,1.3604,156.76,156.69,15.33]
[1727377172126,1.3604,156.76,156.71,15.33]
[1727377172326,1.3063,156.79,156.71,15.33]
[1727377172726,1.3063,156.79,156.74,3.189]
[1727377174222,1.3063,156.79,156.73,3.1893]
[1727377174731,1.3063,156.79,156.72,3.1895]
[1727377174930,15.33,156.78,156.72,3.1895]
[1727377177931,15.33,156.78,156.68,1.3577]
[1727377178337,15.33,156.78,156.71,3.1898]
[1727377179436,15.33,156.78,156.68,1.3577]
[1727377180636,15.33,156.78,156.71,3.1901]
[1727377181729,15.33,156.78,156.72,3.1899]
[1727377183030,15.33,156.78,156.7,3.1901]
[1727377184044,15.33,156.78,156.71,3.1901]
[1727377185932,15.33,156.75,156.68,1.3577]
[1727377186137,15.33,156.75,156.65,1.3123]
[1727377186336,9.8,156.72,156.67,9.8]
[1727377187042,9.8,156.7,156.65,9.8]
[1727377187244,9.8,156.7,156.66,9.8]
[1727377187737,9.8,156.7,156.68,3.1907]
[1727377189535,9.8,156.7,156.67,3.1908]
[1727377190343,4.61673308,156.73,156.68,9.8]
[1727377190549,11.1568,156.73,156.68,9.8]
[1727377190748,14.38948021,156.73,156.68,9.8]
[1727377191044,14.38948021,156.73,156.69,3.1904]
[1727377191249,11.1568,156.73,156.68,9.8]
[1727377191444,11.1568,156.73,156.69,9.8]
[1727377191949,11.1568,156.73,156.7,3.1902]
[1727377193453,1.3568,156.73,156.7,9.8]
[1727377193652,1.3568,156.73,156.69,9.8]
[1727377193949,1.3568,156.73,156.7,3.1901]
[1727377194152,1.3568,156.73,156.69,9.8]
[1727377195044,1.3046,156.74,156.7,9.8]
[1727377195748,1.3046,156.74,156.72,3.1899]
[1727377196243,9.8,156.76,156.72,3.1899]
[1727377196851,1.319,156.78,156.73,9.8]
[1727377197052,11.119,156.78,156.73,9.8]
[1727377197257,9.8,156.76,156.73,3.1896]
[1727377197454,9.8,156.76,156.72,9.8]
[1727377197657,11.119,156.78,156.73,9.8]
[1727377198153,9.8,156.77,156.72,9.8]
[1727377199751,9.8,156.77,156.74,3.1894]
[1727377199944,1.319,156.78,156.74,9.8]
[1727377199945,11.119,156.78,156.74,9.8]
[1727377200150,1.319,156.78,156.75,9.8]
[1727377200457,1.319,156.78,156.75,12.9892]
[1727377200654,1.319,156.78,156.68,2.6093]
[1727377200655,3.15091963,156.89,156.76,9.8]
[1727377200853,9.8,156.82,156.76,9.8]
[1727377201154,9.8,156.77,156.69,10.21859808]
[1727377201352,9.8,156.72,156.68,11.1332]
[1727377201754,9.8,156.72,156.69,3.1904]
[1727377202055,9.8,156.7,156.64,9.8]
[1727377202351,9.8,156.67,156.63,86.38]
[1727377202758,9.8,156.66,156.63,76.58]
[1727377202960,9.8,156.66,156.62,1.332]
[1727377203157,1.2533,156.71,156.64,9.8]
[1727377203455,1.2533,156.71,156.68,9.8]
[1727377204246,1.2533,156.71,156.62,1.332]
[1727377204448,1.2533,156.71,156.65,15.31]
[1727377205254,1.2533,156.71,156.68,3.1906]
[1727377205553,1.2533,156.71,156.65,15.31]
[1727377205554,15.31,156.7,156.62,1.332]
[1727377205752,15.31,156.7,156.64,3.1915]
[1727377206153,16.6598,156.7,156.64,3.1915]
[1727377206355,16.6598,156.7,156.65,3.1913]
[1727377206556,16.6598,156.7,156.63,15.31]
[1727377206863,16.6598,156.7,156.66,3.1909]
[1727377207159,1.2533,156.71,156.63,15.31]
[1727377207356,1.2533,156.71,156.64,6.40057424]
[1727377207556,1.2533,156.71,156.65,15.31]
[1727377207954,1.2533,156.71,156.67,3.1908]
[1727377208151,1.288,156.74,156.65,15.31]
[1727377208356,2.6719,156.75,156.67,15.31]
[1727377208763,2.6719,156.75,156.69,3.1903]
[1727377208961,15.31,156.74,156.65,15.31]
[1727377209365,15.31,156.74,156.67,3.1907]
[1727377210366,15.31,156.72,156.63,25.55271702]
[1727377210560,15.31,156.7,156.62,1.332]
[1727377210769,15.31,156.7,156.63,6.40407159]
[1727377210969,15.31,156.7,156.62,1.332]
[1727377211261,15.31,156.7,156.65,3.1913]
[1727377211469,15.31,156.7,156.62,1.332]
[1727377211666,15.31,156.7,156.63,6.40406935]
[1727377211967,15.31,156.7,156.62,1.332]
[1727377212566,15.31,156.7,156.65,3.1911]
[1727377213568,15.31,156.7,156.66,3.1911]
[1727377215172,21.8319,156.75,156.65,3.1912]
[1727377215371,15.31,156.7,156.65,3.1912]
[1727377215970,15.31,156.7,156.64,3.1914]
[1727377216175,1.2723,156.69,156.64,3.1914]
[1727377217274,1.2723,156.69,156.62,1.332]
[1727377217471,1.2723,156.69,156.63,6.4065673]
[1727377217673,1.2723,156.69,156.62,1.332]
[1727377217974,1.2723,156.69,156.66,3.191]
[1727377219771,1.2723,156.69,156.63,15.31]
[1727377219982,15.31,156.72,156.64,6.40585853]
[1727377220178,15.31,156.72,156.67,3.1908]
[1727377220373,15.31,156.72,156.63,15.31]
[1727377220577,1.3662,156.74,156.67,15.31]
[1727377221375,1.3662,156.74,156.69,3.1905]
[1727377221777,1.3662,156.74,156.7,3.1902]
[1727377222681,1.3662,156.74,156.69,3.1904]
[1727377223485,1.3662,156.74,156.68,3.1906]
[1727377223781,15.31,156.71,156.63,25.56329652]
[1727377223982,15.31,156.71,156.64,6.40897004]
[1727377224185,15.31,156.71,156.62,60.49275919]
[1727377224583,15.31,156.71,156.65,3.1911]
[1727377224880,15.31,156.71,156.62,60.49275919]
[1727377225084,15.31,156.71,156.65,3.1911]
[1727377225485,15.31,156.69,156.63,10.25631733]
[1727377225684,15.31,156.69,156.62,59.16075919]
[1727377225876,15.31,156.67,156.62,59.16075919]
[1727377226280,15.31,156.67,156.64,3.1914]
[1727377226880,15.31,156.67,156.63,3.1917]
[1727377227993,2.7311,156.68,156.59,15.31]
[1727377228292,2.7311,156.68,156.61,15.31]
[1727377228481,2.7311,156.68,156.66,3.1911]
[1727377228883,1.3531,156.68,156.61,15.31]
[1727377229086,1.3531,156.68,156.63,15.31]
[1727377229590,1.3531,156.68,156.66,3.191]
[1727377230589,1.3531,156.68,156.67,3.1909]
[1727377234498,1.3531,156.68,156.65,3.1912]
[1727377234698,1.3531,156.68,156.61,15.31]
[1727377235100,1.3531,156.68,156.66,3.191]
[1727377235599,1.3531,156.68,156.67,3.1909]
[1727377237992,15.31,156.72,156.68,3.1906]
[1727377238901,15.31,156.72,156.67,3.1908]
[1727377239092,15.31,156.72,156.63,15.31]
[1727377239591,15.31,156.72,156.67,3.1908]
[1727377239993,15.31,156.71,156.67,3.1908]
[1727377240605,1.3332,156.74,156.68,3.1907]
[1727377240805,15.31,156.73,156.68,3.1907]
[1727377242412,15.31,156.69,156.6,15.31]
[1727377242599,1.3063,156.68,156.6,15.31]
[1727377242801,15.31,156.62,156.6,3.1923]
[1727377244902,15.31,156.61,156.52,1.2912]
[1727377245103,15.31,156.61,156.53,6.41189965]
[1727377245304,15.31,156.61,156.58,3.1927]
[1727377245804,15.31,156.61,156.52,1.2912]
[1727377246014,15.31,156.59,156.52,1.2912]
[1727377246508,15.31,156.59,156.56,3.1931]
[1727377247402,15.31,156.57,156.52,1.2912]
[1727377247602,15.31,156.57,156.49,6.40728448]
[1727377248908,15.31,156.57,156.54,3.1934]
[1727377249707,15.31,156.58,156.55,3.1933]
[1727377250307,1.3864,156.59,156.51,15.31]
[1727377250808,15.31,156.58,156.55,3.1932]
[1727377251310,15.31,156.58,156.54,3.1935]
[1727377251501,15.31,156.58,156.47,21.7086147]
[1727377251807,15.31,156.56,156.47,15.31]
[1727377252008,15.31,156.56,156.53,3.1936]
[1727377253608,15.31,156.56,156.54,3.1935]
[1727377255012,15.31,156.56,156.53,3.1937]
[1727377255415,15.31,156.56,156.47,15.31]
[1727377255715,15.31,156.56,156.54,3.1935]
[1727377257116,15.31,156.56,156.47,15.31]
[1727377257816,15.31,156.56,156.52,3.1938]
[1727377258414,15.31,156.54,156.46,2.6149]
[1727377260411,20.5464,156.59,156.5,3.1942]
[1727377260615,15.31,156.54,156.5,3.1942]
[1727377261426,15.31,156.56,156.46,2.6149]
[1727377261820,15.31,156.56,156.52,3.1939]
[1727377262425,9.81,156.53,156.51,3.1941]
[1727377262626,9.81,156.52,156.51,3.1941]
[1727377264522,1.3864,156.59,156.5,9.81]
[1727377264724,9.81,156.55,156.51,9.81]
[1727377265318,9.81,156.54,156.53,3.1936]
[1727377266525,1.3864,156.59,156.53,3.1936]
[1727377266526,15.34,156.56,156.53,3.1936]
[1727377267831,1.3864,156.59,156.49,15.34]
[1727377268026,1.3864,156.59,156.51,15.34]
[1727377268728,1.3864,156.59,156.56,3.193]
[1727377269331,1.3244,156.6,156.51,15.34]
[1727377269523,1.3244,156.6,156.54,15.34]
[1727377269831,15.34,156.59,156.52,1.2839]
[1727377270034,15.34,156.57,156.47,21.7297]
[1727377270232,15.34,156.55,156.47,1.3052]
[1727377270735,15.34,156.53,156.47,1.3052]
[1727377270931,15.34,156.53,156.51,3.194]
[1727377271436,15.34,156.53,156.47,1.3052]
[1727377272334,15.34,156.53,156.51,3.194]
[1727377272531,1.3145,156.54,156.47,1.3052]
[1727377273031,1.3145,156.54,156.52,3.1938]
[1727377273232,1.3145,156.54,156.47,16.6452]
[1727377273834,18.53732864,156.57,156.54,3.1935]
[1727377274132,18.53732864,156.57,156.47,16.6452]
[1727377274832,18.53732864,156.57,156.53,3.1937]
[1727377275837,15.34,156.55,156.53,3.1937]
[1727377276133,15.34,156.54,156.51,3.194]
[1727377276334,15.34,156.54,156.47,1.3052]
[1727377277728,15.34,156.54,156.5,3.1942]
[1727377277928,15.34,156.51,156.5,3.1942]
[1727377278937,15.34,156.51,156.49,3.1945]
[1727377279435,15.34,156.51,156.42,12.15721725]
[1727377280337,15.34,156.51,156.49,3.1944]
[1727377280841,15.34,156.5,156.42,1.3216]
[1727377281234,15.34,156.5,156.39,15.34]
[1727377281235,15.34,156.48,156.39,15.34]
[1727377282535,15.34,156.48,156.45,3.1952]
[1727377283438,15.34,156.48,156.46,3.1952]
[1727377286337,15.34,156.5,156.46,3.1952]
[1727377286737,15.34,156.48,156.45,3.1953]
[1727377287443,15.34,156.48,156.46,3.1951]
[1727377287637,15.34,156.48,156.38,2.6239]
[1727377287838,15.34,156.47,156.45,3.1953]
[1727377288037,2.6837,156.52,156.39,15.34]
[1727377288239,15.34,156.48,156.39,15.34]
[1727377289642,15.34,156.48,156.45,3.1953]
[1727377289842,15.34,156.48,156.39,15.34]
[1727377290746,15.34,156.48,156.46,3.1951]
[1727377291237,15.34,156.48,156.46,3.195]
[1727377292939,15.34,156.48,156.45,3.1954]
[1727377293840,15.34,156.47,156.45,3.1954]
[1727377294048,15.34,156.47,156.44,3.1956]
[1727377294243,1.3585,156.46,156.44,3.1956]
[1727377294442,1.3585,156.46,156.45,3.1954]
[1727377295043,1.3585,156.46,156.44,3.1956]
[1727377295950,1.3585,156.46,156.37,18.51493493]
[1727377296445,1.3585,156.46,156.38,1.3328]
[1727377296637,1.3585,156.46,156.45,3.1954]
[1727377297041,1.3585,156.46,156.38,1.3328]
[1727377297950,1.3585,156.46,156.44,3.1955]
[1727377298747,1.3585,156.46,156.45,3.1954]
[1727377299546,1.3585,156.46,156.43,3.1956]
[1727377302840,1.3585,156.46,156.44,3.1956]
[1727377305748,1.3585,156.46,156.45,3.1954]
[1727377306341,4.52614203,156.46,156.38,1.3328]
[1727377306846,4.52614203,156.46,156.44,3.1955]
[1727377307445,15.34,156.45,156.38,1.3328]
[1727377307751,15.34,156.42,156.33,23.0673]
[1727377308551,15.34,156.42,156.41,3.1962]
[1727377310451,15.34,156.44,156.41,3.1962]
[1727377312759,15.34,156.42,156.33,23.0673]
[1727377313358,15.34,156.42,156.41,3.1962]
[1727377313753,15.34,156.42,156.33,23.0673]
[1727377314857,15.34,156.42,156.4,3.1963]
[1727377316354,9.83,156.41,156.4,3.1963]
[1727377324357,1.3654,156.45,156.44,3.1956]
[1727377324563,11.1954,156.45,156.38,9.83]
[1727377324766,9.83,156.42,156.38,9.83]
[1727377325358,9.83,156.42,156.41,3.1962]
[1727377330271,5.89054203,156.46,156.39,9.83]
[1727377330466,9.83,156.43,156.39,9.83]
[1727377331769,9.83,156.43,156.42,3.196]
[1727377332068,1.3506,156.52,156.42,9.83]
[1727377332374,9.83,156.49,156.45,9.83]
[1727377332572,1.3435,156.51,156.45,9.83]
[1727377332769,9.83,156.5,156.46,9.83]
[1727377333772,9.83,156.5,156.48,3.1946]
[1727377335367,9.83,156.49,156.47,3.1949]
[1727377335569,9.83,156.48,156.39,6.3932]
[1727377335774,1.3435,156.51,156.45,9.83]
[1727377336070,76.72,156.66,156.49,9.83]
[1727377336268,9.83,156.54,156.49,9.83]
[1727377336674,9.83,156.54,156.51,3.194]
[1727377338068,9.83,156.54,156.48,9.83]
[1727377338469,9.83,156.54,156.49,9.83]
[1727377338961,9.83,156.54,156.52,3.1938]
[1727377340972,9.83,156.54,156.46,1.3415]
[1727377340973,3.13411509,156.55,156.46,11.1715]
[1727377341266,9.83,156.51,156.46,11.1715]
[1727377341465,9.83,156.51,156.49,3.1944]
[1727377341871,9.83,156.51,156.46,11.1715]
[1727377343471,9.83,156.52,156.5,3.1942]
[1727377344373,9.83,156.52,156.47,9.83]
[1727377344972,9.83,156.52,156.5,3.1943]
[1727377347876,9.83,156.52,156.51,3.1942]
[1727377349065,4.5107383,156.53,156.49,3.1945]
[1727377349272,9.83,156.52,156.46,9.83]